{"text_format":"3","workbook":"xlsx","n_sheets":1,"sheets":["ΔΕΔΟΜΕΝΑ ΠΡΟΒΛΗΜΑΤΟΣ - ΓΡΑΦΗΜΑ"],"not_rendered":{"charts":1,"defined_names":14},"read":"whole","date_system":"1900"}

{"sheet":"ΔΕΔΟΜΕΝΑ ΠΡΟΒΛΗΜΑΤΟΣ - ΓΡΑΦΗΜΑ","index":0,"n_rows":17,"n_cols":5,"rows_kept":17}
[null,"ΑΝΑΛΥΣΗ ΠΡΟΒΛΗΜΑΤΟΣ - PARETO"]
[null,"Το γράφημα Pareto για το αθροιστικό ποσοστό του αριθμού εμφανίσεων όλων των περιοχών προβλημάτων βρίσκεται σε αυτό το κελί."]
[]
[null,"ΔΕΔΟΜΕΝΑ ΠΡΟΒΛΗΜΑΤΟΣ"]
[]
[null,"ΠΕΡΙΟΧΗ ΠΡΟΒΛΗΜΑΤΟΣ","ΕΜΦΑΝΙΣΕΙΣ","ΠΟΣΟΣΤΟ ΣΥΝΟΛΟΥ","ΑΘΡΟΙΣΤΙΚΟ ΠΟΣΟΣΤΟ"]
[null,"Μετάδοση",35,{"$f":"IFERROR(Δεδομένα[[#This Row],[ΕΜΦΑΝΙΣΕΙΣ]]/SUM(Δεδομένα[ΕΜΦΑΝΙΣΕΙΣ]), \"\")","v":{"v":0.23178807947019867,"d":"23.18%"}},{"$f":"IFERROR(SUM(INDEX(Δεδομένα[ΕΜΦΑΝΙΣΕΙΣ],1):Δεδομένα[[#This Row],[ΕΜΦΑΝΙΣΕΙΣ]])/SUM(Δεδομένα[ΕΜΦΑΝΙΣΕΙΣ]), \"\")","v":{"v":0.23178807947019867,"d":"23.18%"}}]
[null,"Σύστημα καυσίμων",25,{"$f":"IFERROR(Δεδομένα[[#This Row],[ΕΜΦΑΝΙΣΕΙΣ]]/SUM(Δεδομένα[ΕΜΦΑΝΙΣΕΙΣ]), \"\")","v":{"v":0.16556291390728478,"d":"16.56%"}},{"$f":"IFERROR(SUM(INDEX(Δεδομένα[ΕΜΦΑΝΙΣΕΙΣ],1):Δεδομένα[[#This Row],[ΕΜΦΑΝΙΣΕΙΣ]])/SUM(Δεδομένα[ΕΜΦΑΝΙΣΕΙΣ]), \"\")","v":{"v":0.3973509933774834,"d":"39.74%"}}]
[null,"Διάφορα",21,{"$f":"IFERROR(Δεδομένα[[#This Row],[ΕΜΦΑΝΙΣΕΙΣ]]/SUM(Δεδομένα[ΕΜΦΑΝΙΣΕΙΣ]), \"\")","v":{"v":0.1390728476821192,"d":"13.91%"}},{"$f":"IFERROR(SUM(INDEX(Δεδομένα[ΕΜΦΑΝΙΣΕΙΣ],1):Δεδομένα[[#This Row],[ΕΜΦΑΝΙΣΕΙΣ]])/SUM(Δεδομένα[ΕΜΦΑΝΙΣΕΙΣ]), \"\")","v":{"v":0.5364238410596026,"d":"53.64%"}}]
[null,"Θορυβώδη",18,{"$f":"IFERROR(Δεδομένα[[#This Row],[ΕΜΦΑΝΙΣΕΙΣ]]/SUM(Δεδομένα[ΕΜΦΑΝΙΣΕΙΣ]), \"\")","v":{"v":0.11920529801324503,"d":"11.92%"}},{"$f":"IFERROR(SUM(INDEX(Δεδομένα[ΕΜΦΑΝΙΣΕΙΣ],1):Δεδομένα[[#This Row],[ΕΜΦΑΝΙΣΕΙΣ]])/SUM(Δεδομένα[ΕΜΦΑΝΙΣΕΙΣ]), \"\")","v":{"v":0.6556291390728477,"d":"65.56%"}}]
[null,"Στοιχεία ελέγχου οδηγού",13,{"$f":"IFERROR(Δεδομένα[[#This Row],[ΕΜΦΑΝΙΣΕΙΣ]]/SUM(Δεδομένα[ΕΜΦΑΝΙΣΕΙΣ]), \"\")","v":{"v":0.08609271523178808,"d":"8.61%"}},{"$f":"IFERROR(SUM(INDEX(Δεδομένα[ΕΜΦΑΝΙΣΕΙΣ],1):Δεδομένα[[#This Row],[ΕΜΦΑΝΙΣΕΙΣ]])/SUM(Δεδομένα[ΕΜΦΑΝΙΣΕΙΣ]), \"\")","v":{"v":0.7417218543046358,"d":"74.17%"}}]
[null,"Άλλο ηλεκτρικό",12,{"$f":"IFERROR(Δεδομένα[[#This Row],[ΕΜΦΑΝΙΣΕΙΣ]]/SUM(Δεδομένα[ΕΜΦΑΝΙΣΕΙΣ]), \"\")","v":{"v":0.07947019867549669,"d":"7.95%"}},{"$f":"IFERROR(SUM(INDEX(Δεδομένα[ΕΜΦΑΝΙΣΕΙΣ],1):Δεδομένα[[#This Row],[ΕΜΦΑΝΙΣΕΙΣ]])/SUM(Δεδομένα[ΕΜΦΑΝΙΣΕΙΣ]), \"\")","v":{"v":0.8211920529801324,"d":"82.12%"}}]
[null,"Ανάφλεξη",10,{"$f":"IFERROR(Δεδομένα[[#This Row],[ΕΜΦΑΝΙΣΕΙΣ]]/SUM(Δεδομένα[ΕΜΦΑΝΙΣΕΙΣ]), \"\")","v":{"v":0.06622516556291391,"d":"6.62%"}},{"$f":"IFERROR(SUM(INDEX(Δεδομένα[ΕΜΦΑΝΙΣΕΙΣ],1):Δεδομένα[[#This Row],[ΕΜΦΑΝΙΣΕΙΣ]])/SUM(Δεδομένα[ΕΜΦΑΝΙΣΕΙΣ]), \"\")","v":{"v":0.8874172185430463,"d":"88.74%"}}]
[null,"Σύστημα ψύξης",7,{"$f":"IFERROR(Δεδομένα[[#This Row],[ΕΜΦΑΝΙΣΕΙΣ]]/SUM(Δεδομένα[ΕΜΦΑΝΙΣΕΙΣ]), \"\")","v":{"v":0.046357615894039736,"d":"4.64%"}},{"$f":"IFERROR(SUM(INDEX(Δεδομένα[ΕΜΦΑΝΙΣΕΙΣ],1):Δεδομένα[[#This Row],[ΕΜΦΑΝΙΣΕΙΣ]])/SUM(Δεδομένα[ΕΜΦΑΝΙΣΕΙΣ]), \"\")","v":{"v":0.9337748344370861,"d":"93.38%"}}]
[null,"Πέδηση",5,{"$f":"IFERROR(Δεδομένα[[#This Row],[ΕΜΦΑΝΙΣΕΙΣ]]/SUM(Δεδομένα[ΕΜΦΑΝΙΣΕΙΣ]), \"\")","v":{"v":0.033112582781456956,"d":"3.31%"}},{"$f":"IFERROR(SUM(INDEX(Δεδομένα[ΕΜΦΑΝΙΣΕΙΣ],1):Δεδομένα[[#This Row],[ΕΜΦΑΝΙΣΕΙΣ]])/SUM(Δεδομένα[ΕΜΦΑΝΙΣΕΙΣ]), \"\")","v":{"v":0.9668874172185431,"d":"96.69%"}}]
[null,"Εκπομπές",3,{"$f":"IFERROR(Δεδομένα[[#This Row],[ΕΜΦΑΝΙΣΕΙΣ]]/SUM(Δεδομένα[ΕΜΦΑΝΙΣΕΙΣ]), \"\")","v":{"v":0.019867549668874173,"d":"1.99%"}},{"$f":"IFERROR(SUM(INDEX(Δεδομένα[ΕΜΦΑΝΙΣΕΙΣ],1):Δεδομένα[[#This Row],[ΕΜΦΑΝΙΣΕΙΣ]])/SUM(Δεδομένα[ΕΜΦΑΝΙΣΕΙΣ]), \"\")","v":{"v":0.9867549668874173,"d":"98.68%"}}]
[null,"Σύστημα διεύθυνσης",2,{"$f":"IFERROR(Δεδομένα[[#This Row],[ΕΜΦΑΝΙΣΕΙΣ]]/SUM(Δεδομένα[ΕΜΦΑΝΙΣΕΙΣ]), \"\")","v":{"v":0.013245033112582781,"d":"1.32%"}},{"$f":"IFERROR(SUM(INDEX(Δεδομένα[ΕΜΦΑΝΙΣΕΙΣ],1):Δεδομένα[[#This Row],[ΕΜΦΑΝΙΣΕΙΣ]])/SUM(Δεδομένα[ΕΜΦΑΝΙΣΕΙΣ]), \"\")","v":{"v":1,"d":"100.00%"}}]